Cogmind - Beta 9.1 @@@ ROGUE MODE // 2019.10.31 @ 20:49:48 // Halloween2019/Abominations Player: fartblaster Result: Destroyed by Lesser Abomination with Improved Light Cannon Performance ------------- Evolutions (0) 0 Regions Visited (1) 200 Robots Destroyed (0) 0 Value Destroyed (20) 20 Prototype IDs (0) 0 Alien Tech Used (0) 0 Bonus (0) 0 TOTAL SCORE: 220 Bonus ------- None Cogmind --------- Core Integrity 0/250 Matter 220/300 Energy 100/100 System Corruption 6% Temperature Cool (0) Location -10/Materials Parts ------- Power (1) Propulsion (2) Utility (2) Small Storage Unit Weapon (2) Inventory (6) Small Laser Peak State ------------ Power Ion Engine Propulsion Light Treads Light Treads Utility Small Storage Unit Structural Scanner Weapon Small Laser Assault Rifle Inventory Grenade Launcher [Rating: 7] Favorites ----------- Power Ion Engine Engine Ion Engine Propulsion Light Treads Treads Light Treads Utility Small Storage Unit Device Structural Scanner Storage Small Storage Unit Weapon Assault Rifle Energy Gun Small Laser Ballistic Gun Assault Rifle Launcher Grenade Launcher Build | -11 -10 ------- Run | Scr Mat Slots Evolved . | . . Power . | . . Propulsion . | . . Utility . | . . Weapon . | . . Parts Attached 8 | 6 2 Power 1 | 1 . Engine 1 | 1 . Core . | . . Reactor . | . . Propulsion 2 | 2 . Treads 2 | 2 . Leg . | . . Wheel . | . . Hover . | . . Flight . | . . Utility 2 | 1 1 Device 1 | . 1 Storage 1 | 1 . Processor . | . . Hackware . | . . Protection . | . . Artifact . | . . Weapon 3 | 2 1 Energy Gun 1 | 1 . Energy Cannon . | . . Ballistic Gun 1 | 1 . Ballistic Cannon . | . . Launcher 1 | . 1 Special Weapon . | . . Impact Weapon . | . . Slashing Weapon . | . . Piercing Weapon . | . . Special Melee Weapon . | . . Unidentified Prototypes . | . . Parts Lost 6 | . 6 Power 1 | . 1 Propulsion 2 | . 2 Utility 1 | . 1 Weapon 2 | . 2 Highest Loss Streak 6 | . 6 Average Slot Usage (%) 92 | . 92 Engine 13 | . 13 Treads 26 | . 26 Device 11 | . 11 Storage 14 | . 14 Energy Gun 11 | . 11 Ballistic Gun 13 | . 13 Naked Turns . | . . Heaviest Build 15 | 12 15 Greatest Support 40 | 40 40 Greatest Overweight (x) 1 | . 1 Average Overweight (x) . | . . Largest Inventory Capacity 6 | 6 6 Average Capacity 5 | 5 6 Most Carried 1 | . 1 Average Carried . | . . Final Capacity 6 | 6 6 Final Carried 1 | . 1 Class Distribution -------------------- 100% | Mutant Dominant Class ---------------- Mutant | -10/Materials Resources | -11 -10 ----------- Run | Scr Mat Matter Collected 281 | 162 119 Remotely . | . . Salvage Created . | . . Parts . | . . Haulers Intercepted . | . . Recyclers Shooed . | . . Parts Field Recycled . | . . Retrieved Matter . | . . Parts Self-Destructed . | . . Prevented . | . . Kills | -11 -10 ------- Run | Scr Mat Combat Hostiles Destroyed . | . . Classes Destroyed . | . . Best Kill Streak . | . . Combat Bots Only . | . . Max Kills in Single Turn . | . . Gunslinging . | . . Exploded . | . . Melee . | . . Uniques/NPCs Destroyed . | . . Combat | -11 -10 -------- Run | Scr Mat Damage Taken 849 | . 849 Core 269 | . 269 Absorbed by Shields . | . . Core Remaining (%) 100 | 100 . Volleys Fired 20 | . 20 Largest 1 | . 1 Hottest 30 | . 30 Shots Fired 20 | . 20 Gun 14 | . 14 Cannon . | . . Launcher 6 | . 6 Special . | . . Kinetic 14 | . 14 Thermal . | . . Explosive 6 | . 6 Electromagnetic . | . . Robot Hit Streak . | . . Robot Miss Streak 10 | . 10 Penetration Max . | . . Secondary Targets . | . . Shots Hit Robots . | . . Core Hits 6 | . 6 Critical Hits . | . . Critical Kills . | . . Critical Parts Destroyed . | . . Melee Attacks . | . . Impact . | . . Slashing . | . . Piercing . | . . Sneak Attacks . | . . Combat Hostiles . | . . Follow-up Attacks . | . . Damage Inflicted 163 | . 163 Guns 15 | . 15 Cannons . | . . Explosions 148 | . 148 Melee . | . . Ramming . | . . Kinetic 15 | . 15 Thermal . | . . Explosive 148 | . 148 Electromagnetic . | . . Impact . | . . Slashing . | . . Piercing . | . . Highest Corruption 6 | . 6 Average Corruption 4 | . 4 Corruption Purged . | . . Effects 3 | . 3 Message Errors 1 | . 1 Matter Fused 1 | . 1 Targeting Errors 1 | . 1 Overload Shots . | . . Overflow Damage 3 | . 3 Projectiles . | . . Explosions 3 | . 3 Melee . | . . Knockbacks . | . . Impact . | . . Kinetic . | . . Secondary . | . . Self-Inflicted Damage . | . . Shots . | . . Rammed . | . . Targets Rammed . | . . Kicked . | . . Crushed . | . . Highest Temperature 328 | . 328 Average Temperature 155 | . 155 Received Heat Transfer . | . . Effects 3 | . 3 Energy Bleed 2 | . 2 Damage (minor) 1 | . 1 Siege Activations . | . . Robots Corrupted . | . . Combat Hostiles . | . . Parts Fried . | . . Impact Corruptions . | . . Robots Melted . | . . Combat Hostiles . | . . Parts Melted . | . . Heat Transferred . | . . Parts Sabotaged . | . . Parts Stolen . | . . Parts Stripped . | . . Power Chain Reactions . | . . Missiles Intercepted . | . . Alert | -11 -10 ------- Run | Scr Mat Peak Influence 30 | . 30 Average Influence 1 | . 1 Maximum Alert Level . | . . Low Security (%) 100 | . . Level 1 . | . . Level 2 . | . . Level 3 . | . . Level 4 . | . . Level 5 . | . . High Security . | . . Max Security . | . . Squads Dispatched 3 | . 3 Investigation 1 | . 1 Extermination . | . . Reinforcement 2 | . 2 Assault . | . . Garrison . | . . Intercept . | . . Construction Impeded . | . . Haulers Reinforced . | . . Stealth | -11 -10 --------- Run | Scr Mat Distress Signals 1 | . 1 Communications Jammed . | . . Distress Signals . | . . Times Spotted 5 | . 5 Peak Tracking Total 7 | . 7 Tactical Retreats . | . . Traps | -11 -10 ------- Run | Scr Mat Traps Triggered . | . . Indirectly . | . . Trap Hack Attempts . | . . Triggered . | . . Disarmed . | . . Reprogrammed . | . . Reused . | . . Traps Extracted . | . . Installed . | . . Triggered . | . . Machines | -11 -10 ---------- Run | Scr Mat Machines Disabled 2 | . 2 Max in Single Turn 2 | . 2 Machines Sabotaged . | . . Garrisons Compromised . | . . Overloaded Fab Kills . | . . Fab Network Shutdowns . | . . Hacking | -11 -10 --------- Run | Scr Mat Machines Accessed 1 | . 1 Terminals 1 | . 1 Fabricators . | . . Repair Stations . | . . Recycling Units . | . . Scanalyzers . | . . Garrison Access . | . . Total Hacks 1 | . 1 Successful 1 | . 1 Failed . | . . Catastrophic . | . . Database Lockouts . | . . Manual . | . . Terminals 1 | . 1 Fabricators . | . . Repair Stations . | . . Recycling Units . | . . Scanalyzers . | . . Garrison Access . | . . Terminal Hacks 1 | . 1 Record 1 | . 1 Fabricator Hacks . | . . Repair Station Hacks . | . . Recycling Unit Hacks . | . . Scanalyzer . | . . Garrison Access Hacks . | . . Unauthorized Hacks . | . . Terminals . | . . Fabricators . | . . Repair Stations . | . . Recycling Units . | . . Scanalyzers . | . . Garrison Access . | . . Data Cores Recovered . | . . Used . | . . Hacking Detections . | . . Full Trace Events . | . . Feedback Events . | . . Feedback Blocked . | . . Robot Schematics Acquired . | . . Robots Built . | . . Matter . | . . Time . | . . Total Robot Build Rating . | . . Part Schematics Acquired . | . . Parts Built . | . . Matter . | . . Time . | . . Total Part Build Rating . | . . Parts Repaired . | . . Time . | . . Parts Recycled . | . . Recycled Matter . | . . Retrieved Matter . | . . Retrieved Components . | . . Parts Scanalyzed . | . . Part Schematics Acquired . | . . Parts Damaged . | . . Bothacking | -11 -10 ------------ Run | Scr Mat Used RIF Installer . | . . Robots Hacked . | . . Non-combat . | . . Combat . | . . Robot Hacks Applied . | . . Relay Couplers Released . | . . Robots Rewired . | . . Allies Hacked . | . . Hacks Repelled . | . . Allies | -11 -10 -------- Run | Scr Mat Total Allies . | . . Largest Group . | . . Highest-Rated Group . | . . Highest-Rated Ally . | . . Total Orders . | . . Ally Attacks . | . . Total Damage . | . . Kills . | . . Allies Corrupted . | . . Allies Melted . | . . Intel | -11 -10 ------- Run | Scr Mat Robot Analysis Total . | . . Derelict Logs Recovered . | . . Drone Launches . | . . Drone Recoveries . | . . Exploration | -11 -10 ------------- Run | Scr Mat Turns Passed 492 | 91 401 Spaces Moved 272 | 56 216 Core 11 | 6 5 Treads 261 | 50 211 Legs . | . . Wheels . | . . Hover . | . . Flight . | . . Fastest Speed 50 | 50 100 Average Speed 156 | 148 158 Slowest Speed 160 | 160 160 Overloaded Moves . | . . Propulsion Burnouts . | . . Robots Hopped . | . . Cave-ins Triggered . | . . Exploration Rate (%) 20 | 5 35 Regions Visited 1 Branch Regions . Pre-discovered Areas . | . . Known Exits Taken . | . . Unknown Exits Taken 1 | 1 . Scrap Searched . | . . Spaces Dug . | . . Terrain Destroyed 24 | . 24 Melee . | . . Projectile . | . . AOE 24 | . 24 Actions | -11 -10 --------- Run | Scr Mat Total 305 | 61 244 Wait 5 | . 5 Move 271 | 55 216 Hop . | . . Pick Up 1 | . 1 Fast Attach 7 | 6 1 Attach . | . . Detach . | . . Swap 1 | . 1 Drop . | . . Fire 20 | . 20 Melee . | . . Ram . | . . Kick . | . . Crush . | . . Escape Stasis . | . . Rewire . | . . Trap . | . . Miscellaneous . | . . Route ------- -11/Scrapyard -10/Materials (discovered 1 exit: [*Mat]) History --------- Turn | Location | Event 30 | -11/Scrapyard | Discovered new exit (range 15) 92 | -11/Scrapyard | Entered Materials 287 | -10/Materials | Discovered new exit (range 12) 307 | -10/Materials | Build established: Mutant 476 | -10/Materials | Core integrity fell below 50% 486 | -10/Materials | Core integrity fell below 20% 493 | -10/Materials | Destroyed by Lesser Abomination with Improved Light Cannon Last Messages --------------- 00456_ Zapped by an electromagnetic arc from EM Anomaly. 00458_ Overheating: Energy bleed (-47). 00463_ The unstable cave ceiling collapses. 00465_ Lgt. Treads destroyed. 00470_ Lesser Abomination forced to warp away. 00470_ Mining Laser blinks away. 00470_ The unstable cave ceiling collapses. 00473_ Ion Engine destroyed. 00475_ Critical hit. 00475_ Assault Rifle destroyed. 00476_ Fire Anomaly forced to warp away. 00477_ Lgt. Treads destroyed. 00477_ Knocked back. 00478_ Structural Scanner destroyed. 00479_ Knocked back. 00481_ Frozen by Ice Anomaly. 00488_ Lesser Abomination spits out Imp. Light Cannon. 00488_ Lesser Abomination feeds off Hungry Anomaly, taking Imp. Light Cannon. 00493_ Frozen by Ice Anomaly. Map ----- +----------------------------------------------------+ | ?????????????????????????????????????????????????? | | ?????????????????????????????????????????????????? | | ?????????????????????????????????????????????????? | | ?????????????????????????????????????????????????? | | ?????????????????????????????????????????????????? | | ?????????????????????????????????????????????????? | | ?????????????????????????????????????????????????? | | ?????????????????????????????????????????????????? | | ?????????????????????????????????????????????????? | | ?????????????????????????????????????????????????? | | ?????????????????????????? % ????????????????????? | | ?????????????????????????# +???????????????????? | | ?????????????????????????# #???????????????????? | | ?????????????????????????# #???????????????????? | | ????????????????????????## ##??????????????????? | | ???????????????????????## #??????????????????? | | ???????????????????????? ??????????????????? | | ???????????????????????? #??????????????????? | | ????????????????????????? #??????????????????? | | ????????????????????????? A ???????????????????? | | ?????????????????????????# #???????????????????? | | ?????????????????#???????# #???????????????????? | | ?????????????????# ?????# #???????????????????? | | ?????????????????# ???# #???????????????????? | | ?????????????????# ## n #???????????????????? | | ?????????????????# /@ #???????????????????? | | ?????????????????######### #???????????????????? | | ?????????????????????????# #???????????????????? | | ?????????????????????????# A ####????????????????? | | ????????????????????###?## ] # #????????????????? | | ??????????????????###"### ##???????????????? | | ???????????######## #???????????????? | | ???????# # ##???????????????? | | ??????????#########| # #????????????????? | | ??????????????????## #### ###??????????????? | | ???????????????????# ## #??????????????? | | ???????????????????# ## #??????????????? | | ???????????????????# ## #??????????????? | | ???????????????????# ## #??????????????? | | ???????????????????# ## #??????????????? | | ???????????????????# ## #??????????????? | | ???????????????????? ?# #??????????????? | | ????????????????????+?#####"#######??????????????? | | ??????????????????????????# #????????????????????? | | ??????? ????????????????# #????????????????????? | | ???????% ##########??????# #????????????????????? | | ??????# # #??????# #??#######???????????? | | ??????# # "" #??????# #### #???????????? | | ??????# # "T #??????# #???????????? | | ??????# # "" #??????+ #???????????? | +----------------------------------------------------+ Best States ------------- Heat Dissipation 25 Energy Generation 10 Energy Capacity 250 Matter Stores 275 Matter Capacity 300 Sight Range 16 Terrain Scan Density 10 Evasion (%) 40 Recoil Reduction 2 Item Schematics ----------------- None Robot Schematics ------------------ None Fabricated ------------ Nothing Alien Tech Used ----------------- None Achievements -------------- None Challenges ------------ None Game ------ Seed AutogunGrenadeElectrolaser Manual? 0 Play Time 00:09:43 Cumulative 4.6 hours Start 2019.10.31 @ 20:41:41 End 2019.10.31 @ 20:49:48 Sessions 1 Manual Loads 0 Difficulty Rogue Special Mode Halloween2019/Abominations Game No. 18 Rogue 18 Adventurer 0 Explorer 0 Win Type - Total 0 Types 0/0/0/0/0/0/0 Lore% 1 Gallery% 10 Achievement% 5 Wizard Run 0 Options --------- ASCII 0 Keyboard 1 Movement Numpad Keybinds 0 Fullscreen 1 Font 18/SmallcapsGlow Map View 76x50 Tactical HUD 1 Map Filters NONE Filters NONE Steam 1 RUN: 688f606c-6821-43bd-80c6-7600638b56a3